bitfinex/quotes_SOLUSD_20230112
["timestamp","ask_amount","ask_price","bid_price","bid_amount"]
[1673537099126,47.03,15.949,15.931,129.4688]
[1673537099334,47.03,15.949,15.932,47.08]
[1673537099552,47.03,15.949,15.934,20.0]
[1673537099766,47.03,15.949,15.935,37.0]
[1673537100086,47.03,15.949,15.936,20.0]
[1673537100503,47.03,15.949,15.936,38.70330892]
[1673537100696,47.03,15.949,15.937,17.0]
[1673537100909,27.14,15.95,15.937,17.0]
[1673537101115,27.14,15.95,15.938,20.0]
[1673537101538,47.03,15.949,15.938,20.0]
[1673537101769,47.03,15.949,15.936,20.0]
[1673537102810,17.0,15.948,15.935,20.0]
[1673537103572,47.04,15.947,15.935,20.0]
[1673537103744,17.0,15.948,15.935,20.0]
[1673537103952,47.03,15.949,15.936,20.0]
[1673537104163,134.52,15.95,15.936,20.0]
[1673537104588,47.03,15.949,15.935,20.0]
[1673537105215,20.0,15.948,15.932,20.0]
[1673537105550,26.68,15.94,15.932,20.0]
[1673537105762,17.0,15.939,15.928,20.0]
[1673537105966,17.0,15.939,15.926,20.0]
[1673537106181,47.06,15.938,15.926,20.0]
[1673537106377,17.0,15.937,15.926,20.0]
[1673537106594,17.0,15.937,15.925,118.1974]
[1673537106808,17.0,15.938,15.925,118.1974]
[1673537107429,47.06,15.937,15.926,20.0]
[1673537107641,47.06,15.937,15.912,20.0]
[1673537107642,37.0,15.936,15.912,20.0]
[1673537107846,26.9,15.93,15.913,130.4756]
[1673537108056,47.09,15.929,15.915,38.70330892]
[1673537108476,47.09,15.929,15.915,20.0]
[1673537109129,26.9,15.93,15.915,20.0]
[1673537109538,26.9,15.93,15.918,17.0]
[1673537111756,26.9,15.93,15.917,18.70330892]
[1673537112167,47.09,15.929,15.914,36.84]
[1673537112493,17.0,15.928,15.915,20.0]
[1673537113118,17.0,15.928,15.915,38.70330892]
[1673537113314,47.09,15.929,15.915,38.70330892]
[1673537113525,111.7935,15.928,15.915,38.70330892]
[1673537114681,111.7935,15.928,15.916,17.0]
[1673537115019,26.92,15.93,15.917,57.40661784]
[1673537115329,26.92,15.93,15.917,38.70330892]
[1673537116359,26.92,15.93,15.918,55.70330892]
[1673537116575,26.92,15.93,15.919,36.57]
[1673537116794,26.92,15.93,15.92,20.0]
[1673537117008,26.92,15.93,15.922,20.0]
[1673537117204,26.92,15.93,15.923,20.0]
[1673537117417,26.92,15.93,15.925,20.0]
[1673537117643,110.05,15.936,15.926,20.0]
[1673537118671,110.05,15.936,15.925,20.0]
[1673537120673,110.05,15.936,15.924,20.0]
[1673537120887,26.81,15.93,15.924,40.0]
[1673537121097,26.81,15.93,15.924,20.0]
[1673537122247,26.81,15.93,15.923,118.2726]
[1673537122457,26.81,15.93,15.924,20.0]
[1673537122998,26.81,15.93,15.922,20.0]
[1673537123200,26.81,15.93,15.923,20.0]
[1673537123841,110.05,15.936,15.923,20.0]
[1673537124050,110.05,15.936,15.924,18.70330892]
[1673537124240,110.05,15.936,15.926,20.0]
[1673537126675,110.05,15.936,15.925,20.0]
[1673537126885,20.0,15.934,15.924,20.0]
[1673537127090,26.9,15.93,15.918,38.70330892]
[1673537127407,47.09,15.929,15.916,20.0]
[1673537127812,47.09,15.929,15.916,38.70330892]
[1673537128041,134.28,15.93,15.916,38.70330892]
[1673537128256,115.744,15.928,15.916,20.0]
[1673537129200,115.744,15.928,15.917,17.0]
[1673537129604,115.744,15.928,15.916,20.0]
[1673537130562,115.744,15.928,15.916,38.70330892]
[1673537130968,115.744,15.928,15.917,17.0]
[1673537133091,115.744,15.928,15.915,18.70330892]
[1673537133294,47.09,15.927,15.916,20.0]
[1673537133916,20.0,15.926,15.916,20.0]
[1673537134125,47.09,15.927,15.916,20.0]
[1673537134126,67.09,15.927,15.916,20.0]
[1673537134355,47.09,15.927,15.916,20.0]
[1673537134548,17.0,15.926,15.916,20.0]
[1673537134984,17.0,15.926,15.915,20.0]
[1673537135721,47.09,15.927,15.915,20.0]
[1673537136537,26.68,15.92,15.915,20.0]
[1673537137072,26.68,15.92,15.911,20.0]
[1673537137817,26.68,15.92,15.911,38.70330892]
[1673537138020,26.68,15.92,15.912,20.0]
[1673537139277,134.53,15.92,15.912,20.0]
[1673537139490,134.53,15.92,15.911,20.0]
[1673537139914,27.17,15.92,15.911,20.0]
[1673537140115,27.17,15.92,15.913,20.0]
[1673537140324,27.17,15.92,15.914,20.0]
[1673537140535,27.17,15.92,15.914,38.70330892]
[1673537140766,27.17,15.92,15.914,20.0]
[1673537141390,115.744,15.928,15.915,35.70330892]
[1673537141717,115.744,15.928,15.917,20.0]
[1673537141718,47.09,15.927,15.917,20.0]
[1673537142234,47.09,15.929,15.917,20.0]
[1673537142447,134.19,15.93,15.918,85.82330892]
[1673537142448,26.84,15.93,15.918,85.82330892]
[1673537142640,26.84,15.93,15.919,20.0]
[1673537142851,26.84,15.93,15.919,38.70330892]
[1673537143077,26.84,15.93,15.92,38.70330892]
[1673537143609,26.84,15.93,15.922,20.0]
[1673537144019,26.84,15.93,15.923,20.0]
[1673537144553,26.84,15.93,15.924,20.0]
[1673537144761,26.84,15.93,15.925,20.0]
[1673537144956,110.05,15.936,15.925,20.0]
[1673537145390,110.05,15.936,15.927,20.0]
[1673537145703,110.05,15.936,15.928,17.0]
[1673537147059,110.05,15.936,15.925,20.0]
[1673537147793,47.07,15.935,15.925,20.0]
[1673537148122,64.07,15.935,15.925,20.0]
[1673537148976,47.07,15.935,15.925,20.0]
[1673537149374,47.06,15.939,15.926,17.0]
[1673537149703,134.74,15.94,15.927,20.0]
[1673537149911,27.14,15.94,15.928,17.0]
[1673537150131,27.14,15.94,15.928,35.70330892]
[1673537150647,27.14,15.94,15.929,20.0]
[1673537150854,27.14,15.94,15.93,17.0]
[1673537151191,27.14,15.94,15.931,20.0]
[1673537151490,47.05,15.942,15.931,20.0]
[1673537151802,47.05,15.943,15.932,20.0]
[1673537152018,47.03,15.948,15.932,37.0]
[1673537152536,47.03,15.948,15.933,20.0]
[1673537152851,47.03,15.948,15.934,37.0]
[1673537153259,47.03,15.948,15.934,20.0]
[1673537153892,47.03,15.948,15.935,17.0]
[1673537154100,47.03,15.948,15.936,20.0]
[1673537154526,47.03,15.948,15.937,20.0]
[1673537154945,47.03,15.949,15.937,20.0]
[1673537155159,47.03,15.949,15.938,35.70330892]
[1673537155362,47.03,15.949,15.937,20.0]
[1673537155771,27.17,15.95,15.938,37.0]
[1673537155989,27.17,15.95,15.938,55.70330892]
[1673537156618,27.17,15.95,15.939,20.0]
[1673537156830,47.03,15.949,15.94,20.0]
[1673537157254,27.17,15.95,15.94,20.0]
[1673537157466,27.17,15.95,15.941,20.0]
[1673537157678,27.17,15.95,15.942,20.0]
[1673537157888,27.17,15.95,15.943,20.0]
[1673537158102,27.17,15.95,15.944,20.0]
[1673537158518,27.17,15.95,15.945,20.0]
[1673537158733,47.0,15.958,15.945,20.0]
[1673537159474,47.0,15.958,15.946,20.0]
[1673537159682,17.0,15.957,15.944,20.0]
[1673537159898,26.81,15.95,15.944,20.0]
[1673537160110,47.03,15.949,15.94,20.0]
[1673537161047,47.03,15.949,15.939,20.0]
[1673537161048,47.03,15.949,15.941,20.0]
[1673537161471,26.81,15.95,15.941,20.0]
[1673537162400,26.81,15.95,15.942,17.0]
[1673537162602,26.81,15.95,15.944,20.0]
[1673537163565,26.81,15.95,15.94,20.0]
[1673537163780,47.03,15.949,15.94,20.0]
[1673537164228,47.03,15.949,15.936,18.70330892]
[1673537164528,17.0,15.948,15.935,20.0]
[1673537164839,47.04,15.947,15.935,20.0]
[1673537165052,47.03,15.949,15.935,20.0]
[1673537166102,47.03,15.949,15.935,38.70330892]
[1673537166733,17.0,15.948,15.935,38.70330892]
[1673537166928,47.04,15.947,15.935,38.70330892]
[1673537167139,47.04,15.947,15.935,20.0]
[1673537167679,47.03,15.949,15.935,20.0]
[1673537168306,47.03,15.949,15.936,18.70330892]
[1673537168522,134.66,15.95,15.938,20.0]
[1673537168712,27.17,15.95,15.938,20.0]
[1673537168923,27.17,15.95,15.939,35.70330892]
[1673537169128,27.17,15.95,15.94,20.0]
[1673537169360,27.17,15.95,15.941,37.0]
[1673537169575,27.17,15.95,15.942,20.0]
[1673537170312,27.17,15.95,15.943,20.0]
[1673537170930,27.17,15.95,15.937,20.0]
[1673537171129,64.03,15.949,15.937,20.0]
[1673537171578,64.03,15.949,15.934,38.70330892]
[1673537172512,64.03,15.949,15.936,20.0]
[1673537173270,64.03,15.949,15.937,20.0]
[1673537177239,47.03,15.949,15.937,20.0]
[1673537177882,47.03,15.949,15.936,20.0]
[1673537178303,20.0,15.948,15.934,20.0]
[1673537178502,47.04,15.947,15.934,20.0]
[1673537178716,17.0,15.946,15.934,20.0]
[1673537178922,47.04,15.945,15.934,20.0]
[1673537179151,17.0,15.944,15.934,20.0]
[1673537179352,26.83,15.94,15.934,20.0]
[1673537180186,26.83,15.94,15.935,20.0]
[1673537180408,116.4493,15.944,15.936,20.0]
[1673537180936,47.05,15.943,15.936,20.0]
[1673537181143,116.4493,15.944,15.935,20.0]
[1673537181335,116.4493,15.944,15.936,20.0]
[1673537182830,116.4493,15.944,15.937,20.0]
[1673537183473,116.4493,15.944,15.936,20.0]
[1673537184317,116.4493,15.944,15.934,20.0]
[1673537184527,134.15,15.94,15.929,20.0]
[1673537184721,17.0,15.939,15.926,28.37]
[1673537184932,64.06,15.939,15.925,38.70330892]
[1673537185137,64.06,15.939,15.926,18.70330892]
[1673537185982,17.0,15.939,15.927,17.0]
[1673537186412,134.18,15.94,15.927,18.70330892]
[1673537186627,17.0,15.939,15.927,18.70330892]
[1673537187040,20.0,15.938,15.927,18.70330892]
[1673537187269,64.06,15.937,15.923,119.7551]
[1673537187451,26.83,15.93,15.924,20.0]
[1673537188207,26.83,15.93,15.925,20.0]
[1673537188526,47.07,15.935,15.926,20.0]
[1673537188755,163.7839,15.936,15.926,20.0]
[1673537189573,163.7839,15.936,15.925,20.0]
[1673537189777,163.7839,15.936,15.924,20.0]
[1673537190108,26.83,15.93,15.924,20.0]
[1673537190293,26.83,15.93,15.923,18.70330892]
[1673537190501,47.09,15.929,15.911,31.4]
[1673537190716,47.09,15.929,15.913,18.70330892]
[1673537190936,26.83,15.93,15.914,31.5]
[1673537191142,133.88,15.93,15.915,20.0]
[1673537191466,133.88,15.93,15.914,31.5]
[1673537191657,64.09,15.929,15.915,20.0]
[1673537191867,64.09,15.929,15.913,18.70330892]
[1673537192100,64.09,15.929,15.911,113.1455]
[1673537192101,26.83,15.92,15.911,113.1455]
[1673537193028,26.83,15.92,15.912,20.0]
[1673537194092,26.83,15.92,15.913,20.0]
[1673537194514,47.1,15.926,15.913,20.0]
[1673537194515,47.09,15.927,15.914,17.0]
[1673537194713,47.09,15.927,15.916,20.0]
[1673537194919,117.9748,15.928,15.916,20.0]
[1673537195141,47.09,15.927,15.915,20.0]
[1673537195679,47.09,15.927,15.914,20.0]
[1673537195867,17.0,15.926,15.913,20.0]
[1673537196499,26.83,15.92,15.913,20.0]
[1673537196730,26.83,15.92,15.912,20.0]
[1673537196936,26.83,15.92,15.909,57.14330892]
[1673537197129,20.0,15.919,15.909,18.70330892]
[1673537197340,84.12,15.919,15.901,149.4903]
[1673537197556,84.12,15.919,15.902,18.70330892]
[1673537197873,64.12,15.919,15.902,55.98330892]
[1673537198084,47.12,15.919,15.903,20.0]
[1673537198298,47.12,15.919,15.903,38.70330892]
[1673537198624,47.12,15.919,15.905,20.0]
[1673537198823,47.12,15.919,15.906,17.0]
[1673537199459,47.12,15.919,15.905,20.0]
[1673537199677,47.12,15.919,15.906,18.70330892]
[1673537199873,138.3517,15.92,15.907,39.28]
[1673537200087,26.82,15.92,15.908,20.0]
[1673537200303,26.82,15.92,15.909,41.13]
[1673537200521,26.82,15.92,15.91,20.0]
[1673537201265,26.82,15.92,15.911,20.0]
[1673537202510,26.82,15.92,15.912,35.70330892]
[1673537202723,47.09,15.927,15.913,62.45]
[1673537203039,47.09,15.927,15.915,20.0]
[1673537203260,47.09,15.927,15.916,20.0]
[1673537203878,17.0,15.926,15.913,20.0]
[1673537204091,26.94,15.92,15.913,20.0]
[1673537204712,26.94,15.92,15.912,20.0]
[1673537204933,26.94,15.92,15.911,20.0]
[1673537206419,26.94,15.92,15.912,20.0]
[1673537207032,26.94,15.92,15.912,38.70330892]
[1673537207259,26.94,15.92,15.914,20.0]
[1673537207480,47.09,15.927,15.914,20.0]
[1673537207668,47.09,15.927,15.915,20.0]
[1673537208295,17.0,15.926,15.915,20.0]
[1673537208747,47.09,15.927,15.915,20.0]
[1673537208933,17.0,15.926,15.915,20.0]
[1673537209147,17.0,15.926,15.913,20.0]
[1673537209358,26.94,15.92,15.912,20.0]
[1673537210213,26.94,15.92,15.911,20.0]
[1673537212496,26.94,15.92,15.908,66.45]
[1673537212727,17.0,15.919,15.896,109.2152]
[1673537212926,47.12,15.918,15.905,20.0]
[1673537214288,47.12,15.919,15.905,20.0]
[1673537214514,47.12,15.919,15.906,20.0]
[1673537214921,47.12,15.919,15.907,20.0]
[1673537215135,17.0,15.918,15.907,20.0]
[1673537215465,47.12,15.917,15.907,20.0]
[1673537216414,17.0,15.918,15.907,20.0]
[1673537217362,17.0,15.918,15.906,20.0]
[1673537217673,47.12,15.917,15.906,20.0]
[1673537217886,20.0,15.915,15.906,20.0]
[1673537218095,47.13,15.915,15.899,177.9469]
[1673537218405,26.94,15.91,15.9,20.0]
[1673537218611,26.94,15.91,15.901,57.29]
[1673537218804,26.94,15.91,15.902,37.0]
[1673537219015,26.94,15.91,15.903,20.0]
[1673537222508,47.12,15.919,15.903,38.70330892]
[1673537222697,47.12,15.919,15.904,20.0]
[1673537222903,47.12,15.919,15.905,37.0]
[1673537223445,47.12,15.919,15.906,20.0]
[1673537223851,47.12,15.919,15.907,17.0]
[1673537224925,47.12,15.919,15.905,20.0]
[1673537224926,17.0,15.918,15.905,20.0]
[1673537225117,26.85,15.91,15.905,20.0]
[1673537225331,26.85,15.91,15.902,20.0]
[1673537225533,26.85,15.91,15.9,62.55]
[1673537225534,26.85,15.91,15.901,20.0]
[1673537226812,26.85,15.91,15.902,20.0]
[1673537227948,26.85,15.91,15.901,20.0]
[1673537228378,134.61,15.91,15.898,47.18]
[1673537228588,134.61,15.91,15.891,119.287]
[1673537228589,64.15,15.909,15.891,119.287]
[1673537228815,20.0,15.908,15.892,67.2]
[1673537229005,64.15,15.907,15.892,67.2]
[1673537229443,20.0,15.906,15.892,67.2]
[1673537229870,17.0,15.905,15.893,20.0]
[1673537230083,20.0,15.906,15.893,20.0]
[1673537230291,17.0,15.905,15.893,20.0]
[1673537231032,112.1531,15.904,15.893,20.0]
[1673537231654,112.1531,15.904,15.893,40.0]
[1673537231849,47.15,15.907,15.894,17.0]
[1673537232181,47.15,15.909,15.895,20.0]
[1673537232385,47.15,15.909,15.895,38.75725104]
[1673537232609,47.15,15.909,15.896,35.75725104]
[1673537233021,20.0,15.908,15.896,35.75725104]
[1673537233224,47.15,15.907,15.896,17.0]
[1673537233434,20.0,15.908,15.896,17.0]
[1673537233856,67.15,15.909,15.896,17.0]
[1673537234077,37.0,15.908,15.895,20.0]
[1673537234285,47.15,15.907,15.895,20.0]
[1673537234893,47.15,15.907,15.896,17.0]
[1673537235533,47.15,15.908,15.895,20.0]
[1673537235957,47.15,15.909,15.895,20.0]
[1673537237117,17.0,15.908,15.896,17.0]
[1673537237433,17.0,15.908,15.896,37.0]
[1673537237647,17.0,15.908,15.896,17.0]
[1673537237962,17.0,15.908,15.895,20.0]
[1673537238176,47.15,15.907,15.894,20.0]
[1673537238360,17.0,15.906,15.892,20.0]
[1673537238575,20.0,15.904,15.892,20.0]
[1673537239217,47.16,15.905,15.892,20.0]
[1673537239418,130.6948,15.904,15.892,40.0]
[1673537239629,113.6948,15.904,15.892,40.0]
[1673537239841,113.6948,15.904,15.892,83.66]
[1673537240064,113.6948,15.904,15.892,40.0]
[1673537240992,113.6948,15.904,15.893,17.0]
[1673537241201,113.6948,15.904,15.894,20.0]
[1673537241642,26.94,15.9,15.894,20.0]
[1673537242053,113.6948,15.904,15.892,20.0]
[1673537242372,113.6948,15.904,15.893,20.0]
[1673537242586,113.6948,15.904,15.894,20.0]
[1673537244249,113.6948,15.904,15.895,17.0]
[1673537244462,113.6948,15.904,15.896,20.0]
[1673537244888,47.15,15.908,15.896,38.75725104]
[1673537245100,20.0,15.908,15.896,38.75725104]
[1673537245316,20.0,15.908,15.896,20.0]
[1673537246155,47.15,15.907,15.896,20.0]
[1673537246347,17.0,15.906,15.896,20.0]
[1673537246562,67.16,15.905,15.896,20.0]
[1673537248141,47.16,15.905,15.892,20.0]
[1673537248353,114.2545,15.904,15.892,20.0]
[1673537248573,114.2545,15.904,15.892,40.0]
[1673537248977,114.2545,15.904,15.893,20.0]
[1673537249193,114.2545,15.904,15.894,20.0]
[1673537249408,114.2545,15.904,15.895,20.0]
[1673537249734,114.2545,15.904,15.896,20.0]
[1673537249918,114.2545,15.904,15.894,20.0]
[1673537250344,114.2545,15.904,15.893,20.0]
[1673537254039,47.17,15.903,15.893,20.0]
[1673537254376,47.17,15.903,15.892,20.0]
[1673537255207,47.17,15.903,15.885,47.22]
[1673537255208,26.97,15.9,15.885,47.22]
[1673537255415,20.0,15.898,15.887,18.75725104]
[1673537256251,67.18,15.899,15.887,18.75725104]
[1673537256570,67.18,15.899,15.884,20.0]
[1673537256571,47.18,15.899,15.884,20.0]
[1673537256785,47.18,15.899,15.885,38.75725104]
[1673537256976,47.18,15.899,15.886,20.0]
[1673537257188,47.18,15.899,15.886,57.51450208]
[1673537257397,47.18,15.899,15.887,18.75725104]
[1673537258257,47.18,15.899,15.884,20.0]
[1673537258465,47.18,15.899,15.885,20.0]
[1673537258868,47.18,15.899,15.885,38.75725104]
[1673537259077,47.18,15.899,15.886,18.75725104]
[1673537259286,20.0,15.898,15.886,18.75725104]
[1673537259504,47.18,15.899,15.886,18.75725104]
[1673537259929,47.18,15.899,15.887,17.0]
[1673537260330,47.18,15.899,15.887,35.75725104]
[1673537261599,17.96,15.9,15.887,35.75725104]
[1673537262349,17.96,15.9,15.888,20.0]
[1673537262540,17.96,15.9,15.889,17.0]
[1673537262746,17.96,15.9,15.888,20.0]
[1673537262972,117.4754,15.903,15.89,20.0]
[1673537262973,47.17,15.903,15.89,20.0]
[1673537263177,47.15,15.908,15.891,20.0]
[1673537263385,47.15,15.908,15.892,17.0]
[1673537263593,47.15,15.908,15.893,20.0]
[1673537263823,17.88,15.9,15.893,20.0]
[1673537264362,67.18,15.899,15.884,35.51997893]
[1673537264768,67.18,15.899,15.886,20.0]
[1673537264769,47.18,15.899,15.886,20.0]
[1673537265196,47.18,15.899,15.886,38.75725104]
[1673537265516,47.18,15.899,15.886,18.75725104]
[1673537266766,47.18,15.899,15.887,17.0]
[1673537266983,17.0,15.898,15.883,119.314]
[1673537267195,20.0,15.896,15.883,119.314]
[1673537267388,47.19,15.895,15.881,18.75725104]
[1673537267601,47.19,15.895,15.882,20.0]
[1673537268440,17.0,15.894,15.882,20.0]
[1673537268661,47.2,15.893,15.882,20.0]
[1673537269192,47.19,15.895,15.884,20.0]
[1673537269404,108.9741,15.896,15.884,20.0]
[1673537269621,108.9741,15.896,15.885,18.75725104]
[1673537269827,108.9741,15.896,15.886,17.0]
[1673537270234,47.19,15.895,15.884,20.0]
[1673537270560,47.19,15.895,15.885,20.0]
[1673537272244,47.19,15.895,15.883,18.75725104]
[1673537272455,108.9741,15.896,15.884,20.0]
[1673537272642,47.19,15.895,15.884,20.0]
[1673537273071,108.9741,15.896,15.884,20.0]
[1673537273282,47.19,15.895,15.885,17.0]
[1673537273507,47.19,15.895,15.886,20.0]
[1673537274218,108.9741,15.896,15.886,20.0]
[1673537275399,47.19,15.895,15.886,20.0]
[1673537277615,20.0,15.894,15.88,20.0]
[1673537277823,20.0,15.894,15.882,18.75725104]
[1673537277824,18.01,15.89,15.882,18.75725104]
[1673537278244,18.01,15.89,15.876,64.72]
[1673537278454,18.01,15.89,15.876,83.47725104]
[1673537278881,18.01,15.89,15.876,110.14787237]
[1673537279307,18.01,15.89,15.877,18.75725104]
[1673537279632,90.2,15.89,15.876,46.67062133]
[1673537279947,47.21,15.889,15.877,18.75725104]
[1673537280136,18.11,15.89,15.878,20.0]
[1673537280348,18.11,15.89,15.879,41.26]
[1673537280673,18.11,15.89,15.879,108.16535893]
[1673537280993,47.18,15.899,15.88,141.08443481]
[1673537281200,137.25,15.9,15.881,62.24]
[1673537281524,137.25,15.9,15.882,37.0]
[1673537281735,137.25,15.9,15.883,43.19]
[1673537281945,137.25,15.9,15.884,37.0]
[1673537282556,18.01,15.89,15.884,20.0]
[1673537282766,18.01,15.89,15.883,20.0]
[1673537282974,119.46,15.9,15.885,20.0]
[1673537282975,137.46,15.9,15.885,20.0]
[1673537283185,137.46,15.9,15.886,37.0]
[1673537283627,65.28,15.9,15.886,84.22]
[1673537284028,65.28,15.9,15.887,20.0]
[1673537284452,65.28,15.9,15.888,17.0]
[1673537284665,65.28,15.9,15.886,51.14810789]
[1673537284873,65.28,15.9,15.887,20.0]
[1673537285087,18.11,15.9,15.886,51.14810789]
[1673537285293,65.28,15.9,15.886,51.14810789]
[1673537285618,65.28,15.9,15.887,17.0]
[1673537285813,65.28,15.9,15.886,51.14810789]
[1673537285814,137.47,15.9,15.886,51.14810789]
[1673537286026,137.47,15.9,15.886,20.0]
[1673537286234,37.0,15.899,15.882,20.0]
[1673537286445,18.01,15.89,15.882,20.0]
[1673537287084,18.01,15.89,15.881,108.7572]
[1673537287282,18.01,15.89,15.883,20.0]
[1673537287625,18.01,15.89,15.884,17.0]
[1673537287933,18.01,15.89,15.885,20.0]
[1673537288140,20.0,15.889,15.885,20.0]
[1673537288540,20.0,15.889,15.877,47.24]
[1673537288754,20.0,15.887,15.874,47.25]
[1673537288982,20.0,15.887,15.872,47.26]
[1673537289387,20.0,15.887,15.872,78.40810789]
[1673537290754,20.0,15.887,15.871,156.6098]
[1673537290755,47.22,15.886,15.871,156.6098]
[1673537290963,20.0,15.884,15.872,20.0]
[1673537291174,67.22,15.884,15.872,20.0]
[1673537292143,47.22,15.884,15.872,71.14810789]
[1673537292331,47.21,15.887,15.873,17.0]
[1673537292540,47.21,15.887,15.874,20.0]
[1673537292753,47.21,15.887,15.875,17.0]
[1673537292973,47.21,15.887,15.876,20.0]
[1673537293193,47.21,15.887,15.877,17.0]
[1673537293394,47.21,15.887,15.876,20.0]
[1673537293609,47.21,15.887,15.873,20.0]
[1673537293800,20.0,15.885,15.872,20.0]
[1673537294017,20.0,15.885,15.873,17.0]
[1673537294225,20.0,15.885,15.874,20.0]
[1673537294872,67.22,15.885,15.874,20.0]
[1673537295188,18.01,15.88,15.874,20.0]
[1673537295585,162.8253,15.888,15.874,20.0]
[1673537295797,115.6153,15.888,15.875,17.0]
[1673537296012,115.6153,15.888,15.876,20.0]
[1673537296242,47.21,15.887,15.874,20.0]
[1673537296639,47.21,15.887,15.873,20.0]
[1673537296973,115.6153,15.888,15.874,20.0]
[1673537297164,18.02,15.89,15.875,43.3]
[1673537297378,18.02,15.89,15.876,20.0]
[1673537297603,18.02,15.89,15.877,45.37]
[1673537297799,18.02,15.89,15.878,20.0]
[1673537298006,18.02,15.89,15.879,66.49]
[1673537298217,18.02,15.89,15.88,20.0]
[1673537298853,18.02,15.89,15.881,17.0]
[1673537299064,47.19,15.895,15.882,20.0]
[1673537299396,47.19,15.895,15.883,17.0]
[1673537299604,47.19,15.895,15.884,20.0]
[1673537299799,47.19,15.895,15.882,20.0]
[1673537300214,47.19,15.895,15.884,20.0]
[1673537300421,47.19,15.895,15.884,40.0]
[1673537300741,47.19,15.895,15.885,37.0]
[1673537300963,47.19,15.895,15.885,17.0]
[1673537301171,47.19,15.895,15.886,20.0]
[1673537301787,115.6153,15.896,15.886,20.0]
[1673537302336,115.6153,15.896,15.887,17.0]
[1673537303279,115.6153,15.896,15.886,20.0]
[1673537303475,115.6153,15.896,15.885,20.0]
[1673537303685,115.6153,15.896,15.881,20.0]
[1673537303686,115.6153,15.896,15.883,20.0]
[1673537303897,20.0,15.895,15.882,20.0]
[1673537304211,115.6153,15.896,15.882,20.0]
[1673537304647,47.18,15.899,15.883,18.75725104]
[1673537304851,20.0,15.899,15.885,20.0]